Cogmind - Beta 9 @@@ ROGUE MODE // 2019.10.24 @ 03:48:15 // Halloween2019/Abominations Player: Nikolayag Result: Destroyed by Lesser Abomination with Assault Rifle Performance ------------- Evolutions (0) 0 Regions Visited (1) 200 Robots Destroyed (11) 55 Value Destroyed (510) 510 Prototype IDs (0) 0 Alien Tech Used (0) 0 Bonus (0) 0 TOTAL SCORE: 765 Bonus ------- None Cogmind --------- Core Integrity 0/250 Matter 284/300 Energy 100/100 System Corruption 5% Temperature Cool (61) Location -10/Materials Parts ------- Power (1) Propulsion (2) Wheel Utility (2) Large Storage Unit Large Storage Unit Weapon (2) Inventory (16) Compact Wheel Small Storage Unit Weapon Shielding Peak State ------------ Power Ion Engine Propulsion Light Treads Light Treads Utility Small Storage Unit Small Storage Unit Weapon Small Laser Assault Rifle Inventory Ion Engine Wheel Wheel Compact Wheel Small Laser [Rating: 7] Favorites ----------- Power Ion Engine Engine Ion Engine Propulsion Light Treads Treads Light Treads Wheel Wheel Utility Large Storage Unit Storage Large Storage Unit Weapon Small Laser Energy Gun Small Laser Ballistic Gun Assault Rifle Launcher Grenade Launcher Build | -11 -10 ------- Run | Scr Mat Slots Evolved . | . . Power . | . . Propulsion . | . . Utility . | . . Weapon . | . . Parts Attached 18 | 7 11 Power 3 | 1 2 Engine 3 | 1 2 Core . | . . Reactor . | . . Propulsion 7 | 2 5 Treads 3 | 2 1 Leg . | . . Wheel 4 | . 4 Hover . | . . Flight . | . . Utility 4 | 2 2 Device . | . . Storage 4 | 2 2 Processor . | . . Hackware . | . . Protection . | . . Artifact . | . . Weapon 4 | 2 2 Energy Gun 2 | 1 1 Energy Cannon . | . . Ballistic Gun 1 | 1 . Ballistic Cannon . | . . Launcher 1 | . 1 Special Weapon . | . . Impact Weapon . | . . Slashing Weapon . | . . Piercing Weapon . | . . Special Melee Weapon . | . . Unidentified Prototypes . | . . Parts Lost 10 | . 10 Power 2 | . 2 Propulsion 5 | . 5 Utility . | . . Weapon 3 | . 3 Highest Loss Streak 4 | . 4 Average Slot Usage (%) 87 | . 87 Engine 13 | . 13 Treads 18 | . 18 Wheel 9 | . 9 Storage 28 | . 28 Energy Gun 11 | . 11 Ballistic Gun 4 | . 4 Naked Turns . | . . Heaviest Build 40 | 16 40 Greatest Support 40 | 40 40 Greatest Overweight (x) 12 | . 12 Average Overweight (x) 1 | . 1 Largest Inventory Capacity 16 | 8 16 Average Capacity 14 | 5 15 Most Carried 9 | 7 9 Average Carried 5 | 3 6 Final Capacity 16 | . 16 Final Carried 3 | . 3 Class Distribution -------------------- 100% | Mutant Dominant Class ---------------- Mutant | -10/Materials Resources | -11 -10 ----------- Run | Scr Mat Matter Collected 457 | 87 370 Remotely . | . . Salvage Created 465 | 104 361 Parts 38 | 11 27 Haulers Intercepted . | . . Recyclers Shooed . | . . Parts Field Recycled . | . . Retrieved Matter . | . . Parts Self-Destructed . | . . Prevented . | . . Kills | -11 -10 ------- Run | Scr Mat Combat Hostiles Destroyed 8 | . 8 Guns 4 | . 4 AOE 4 | . 4 Classes Destroyed 3 | 2 1 Tunneler 2 | 2 . Recycler 1 | 1 . Abomination 8 | . 8 Best Kill Streak 4 | 3 4 Combat Bots Only 4 | . 4 Max Kills in Single Turn 1 | 1 1 Gunslinging . | . . Exploded 1 | . 1 Melee . | . . Uniques/NPCs Destroyed . | . . Combat | -11 -10 -------- Run | Scr Mat Damage Taken 1464 | . 1464 Core 260 | . 260 Absorbed by Shields . | . . Core Remaining (%) 100 | 100 . Volleys Fired 44 | 6 38 Largest 2 | 2 2 Hottest 80 | 60 80 Shots Fired 79 | 12 67 Gun 72 | 12 60 Cannon . | . . Launcher 7 | . 7 Special . | . . Kinetic 21 | 6 15 Thermal 51 | 6 45 Explosive 7 | . 7 Electromagnetic . | . . Robot Hit Streak 33 | 3 33 Robot Miss Streak 2 | 1 2 Penetration Max . | . . Secondary Targets . | . . Shots Hit Robots 64 | 7 57 Core Hits 31 | 4 27 Critical Hits . | . . Critical Kills . | . . Critical Parts Destroyed . | . . Melee Attacks . | . . Impact . | . . Slashing . | . . Piercing . | . . Sneak Attacks . | . . Combat Hostiles . | . . Follow-up Attacks . | . . Damage Inflicted 1006 | 69 937 Guns 712 | 69 643 Cannons . | . . Explosions 294 | . 294 Melee . | . . Ramming . | . . Kinetic 201 | 23 178 Thermal 511 | 46 465 Explosive 294 | . 294 Electromagnetic . | . . Impact . | . . Slashing . | . . Piercing . | . . Highest Corruption 5 | . 5 Average Corruption 2 | . 2 Corruption Purged . | . . Effects 8 | . 8 Message Errors 4 | . 4 Matter Fused 2 | . 2 Energy Discharges 2 | . 2 Overload Shots . | . . Overflow Damage . | . . Projectiles . | . . Explosions . | . . Melee . | . . Knockbacks . | . . Impact . | . . Kinetic . | . . Secondary . | . . Self-Inflicted Damage . | . . Shots . | . . Rammed 1 | . 1 Targets Rammed 1 | . 1 Kicked . | . . Crushed . | . . Highest Temperature 440 | 20 440 Average Temperature 86 | 17 90 Received Heat Transfer 48 | . 48 Effects 1 | . 1 Shutdowns 1 | . 1 Siege Activations . | . . Robots Corrupted . | . . Combat Hostiles . | . . Parts Fried . | . . Impact Corruptions . | . . Robots Melted . | . . Combat Hostiles . | . . Parts Melted . | . . Heat Transferred 354 | 100 254 Parts Sabotaged . | . . Parts Stolen . | . . Parts Stripped . | . . Power Chain Reactions . | . . Missiles Intercepted . | . . Alert | -11 -10 ------- Run | Scr Mat Peak Influence 22 | 15 22 Average Influence 6 | 6 6 Maximum Alert Level . | . . Low Security (%) 100 | . . Level 1 . | . . Level 2 . | . . Level 3 . | . . Level 4 . | . . Level 5 . | . . High Security . | . . Max Security . | . . Squads Dispatched 15 | . 15 Investigation 2 | . 2 Extermination . | . . Reinforcement 2 | . 2 Assault 11 | . 11 Garrison . | . . Intercept . | . . Construction Impeded . | . . Haulers Reinforced . | . . Stealth | -11 -10 --------- Run | Scr Mat Distress Signals 1 | . 1 Communications Jammed . | . . Distress Signals . | . . Times Spotted 18 | . 18 Peak Tracking Total 8 | . 8 Tactical Retreats 1 | . 1 Traps | -11 -10 ------- Run | Scr Mat Traps Triggered . | . . Indirectly . | . . Trap Hack Attempts . | . . Triggered . | . . Disarmed . | . . Reprogrammed . | . . Reused . | . . Traps Extracted . | . . Installed . | . . Triggered . | . . Machines | -11 -10 ---------- Run | Scr Mat Machines Disabled 1 | . 1 Max in Single Turn 1 | . 1 Machines Sabotaged . | . . Garrisons Compromised . | . . Overloaded Fab Kills . | . . Fab Network Shutdowns . | . . Hacking | -11 -10 --------- Run | Scr Mat Machines Accessed 1 | . 1 Terminals 1 | . 1 Fabricators . | . . Repair Stations . | . . Recycling Units . | . . Scanalyzers . | . . Garrison Access . | . . Total Hacks 5 | . 5 Successful 4 | . 4 Failed 1 | . 1 Catastrophic . | . . Database Lockouts . | . . Manual 5 | . 5 Terminals 5 | . 5 Fabricators . | . . Repair Stations . | . . Recycling Units . | . . Scanalyzers . | . . Garrison Access . | . . Terminal Hacks . | . . Fabricator Hacks . | . . Repair Station Hacks . | . . Recycling Unit Hacks . | . . Scanalyzer . | . . Garrison Access Hacks . | . . Unauthorized Hacks 9 | . 9 Terminals 4 | . 4 Track 1 | . 1 Botnet 1 | . 1 Disrupt 1 | . 1 Operators 1 | . 1 Fabricators . | . . Repair Stations . | . . Recycling Units . | . . Scanalyzers . | . . Garrison Access . | . . Data Cores Recovered . | . . Used . | . . Hacking Detections 1 | . 1 Full Trace Events 1 | . 1 Feedback Events . | . . Feedback Blocked . | . . Robot Schematics Acquired . | . . Robots Built . | . . Matter . | . . Time . | . . Total Robot Build Rating . | . . Part Schematics Acquired . | . . Parts Built . | . . Matter . | . . Time . | . . Total Part Build Rating . | . . Parts Repaired . | . . Time . | . . Parts Recycled . | . . Recycled Matter . | . . Retrieved Matter . | . . Retrieved Components . | . . Parts Scanalyzed . | . . Part Schematics Acquired . | . . Parts Damaged . | . . Bothacking | -11 -10 ------------ Run | Scr Mat Used RIF Installer . | . . Robots Hacked . | . . Non-combat . | . . Combat . | . . Robot Hacks Applied . | . . Relay Couplers Released . | . . Robots Rewired . | . . Allies Hacked . | . . Hacks Repelled . | . . Allies | -11 -10 -------- Run | Scr Mat Total Allies . | . . Largest Group . | . . Highest-Rated Group . | . . Highest-Rated Ally . | . . Total Orders . | . . Ally Attacks . | . . Total Damage . | . . Kills . | . . Allies Corrupted . | . . Allies Melted . | . . Intel | -11 -10 ------- Run | Scr Mat Robot Analysis Total . | . . Derelict Logs Recovered . | . . Drone Launches . | . . Drone Recoveries . | . . Exploration | -11 -10 ------------- Run | Scr Mat Turns Passed 1046 | 113 933 Spaces Moved 321 | 55 266 Core 11 | 10 1 Treads 173 | 45 128 Legs . | . . Wheels 137 | . 137 Hover . | . . Flight . | . . Fastest Speed 50 | 50 110 Average Speed 137 | 140 137 Slowest Speed 650 | 160 650 Overloaded Moves . | . . Propulsion Burnouts . | . . Robots Hopped . | . . Cave-ins Triggered . | . . Exploration Rate (%) 23 | 4 42 Regions Visited 1 Branch Regions . Pre-discovered Areas . | . . Known Exits Taken . | . . Unknown Exits Taken 1 | 1 . Scrap Searched . | . . Spaces Dug . | . . Terrain Destroyed 22 | . 22 Melee . | . . Projectile . | . . AOE 22 | . 22 Actions | -11 -10 --------- Run | Scr Mat Total 841 | 76 765 Wait 447 | 1 446 Move 320 | 54 266 Hop . | . . Pick Up 10 | 8 2 Fast Attach 8 | 6 2 Attach 8 | 1 7 Detach . | . . Swap 2 | . 2 Drop 1 | . 1 Fire 44 | 6 38 Melee . | . . Ram . | . . Kick . | . . Crush 1 | . 1 Escape Stasis . | . . Rewire . | . . Trap . | . . Miscellaneous . | . . Route ------- -11/Scrapyard -10/Materials (discovered 1 exit: [*Mat]) History --------- Turn | Location | Event 10 | -11/Scrapyard | Discovered new exit (range 15) 114 | -11/Scrapyard | Entered Materials 316 | -10/Materials | Build established: Mutant 417 | -10/Materials | Lost 3 parts (1p1n1w) 659 | -10/Materials | Core integrity fell below 50% 691 | -10/Materials | Lost 4 parts (2n2w) 1032 | -10/Materials | Discovered new exit (range 11) 1037 | -10/Materials | Core integrity fell below 20% 1047 | -10/Materials | Destroyed by Lesser Abomination with Assault Rifle Last Messages --------------- 00890_ System corrupted: Energy discharge (-65). 00939_ Q:T1YZRG8PNP4LRFY>8 01020_ ALERT: Dispatching additional forces to engage threats. 01022_ Unstable Anomaly suddenly flashes brightly. 01025_ Wheel destroyed. 01030_ System corrupted: Energy discharge (-75). 01032_ Power failure, Ion Engine shutdown. 01032_ Lesser Abomination spits out Sml. Matter Pod. 01032_ Lesser Abomination absorbs Med. Matter Pod. 01032_ EXIT=FOUND 01033_ Hungry Anomaly eats Sml. Matter Pod. 01041_ Ion Engine destroyed. 01043_ Acquired 23 matter. 01044_ Acquired 25 matter. 01045_ Acquired 40 matter. 01046_ Lgt. Treads destroyed. 01046_ Acquired 20 matter. Map ----- +----------------------------------------------------+ | ?????????????????????????#" % #??### #! R " # | | ???????????????????????###" " ### ### "" " #### | | ???????????????????##### ## "" #] "## # | | ?????????????????? """"" n """""""" " | | ??????????????????? """ """""" | | ??????????????????? n A "A | | ?????????????????? % % """ """""# | | ????????????????? """"" """""""" " | | ???????????????"""% "" #"""" ## "" ### " | | ???????????????? " """""##"##### + #?##"" | | ??????????????## " # #n # "T" #?#### | | ??????????????? " " """ AA # # """ #????? | | ???????????????# " %# """A # ## #"#####????? | | ?????????????###;; ; """ #n""+######?????? | | ???????????? ; %;A n " "" #?????? | | ???????????# T ;% %; "Y" " "" #?????? | | ???????????# ; %%% """ " "" #?????? | | ???????????# ;%%%;;;;;;;;""""A "" #?????? | | ?????????????""" ; %%%%% ; " "" "T" #?????? | | ?????????????""" ;% %% % ; ### " "" """ #?????? | | ???????????# """ ; %%%% ; #?# " ""#######?????? | | ???????????# ;% %%%%%!;##?# " " ####????????? | | ???????????# %; %%%%%% ;#??# " " #???????????? | | ???????????# ; ==%%%% ;#??#""" " #???????????? | | ???????????# ; =%%%%% ;#??# " #???????????? | | ??????????#; ; %!%%%@##??# " #???????????? | | ??????????#;;;;;;; =%%%<=#???# " ##??????????? | | ??????????#; ; [%%=%%#???# " #??????????? | | ???????????# ; *=####???# " #??????????? | | ???????????# ; ;#???????# " #??????????? | | ???????????? % ; ;????????# " #??????????? | | ???????????? ;;;;"?########"""""" #??????????? | | ???????????? ; % % [ "# "##??????????? | | ????????????? ; """ "# "#???????????? | | ????????????? ; "T" "# "#???????????? | | ??????????????#### ## "#???????????? | | ?????????????????#########??##########???????????? | | | | | | | | | | | | | | | | | | | | | | | | | | | +----------------------------------------------------+ Best States ------------- Heat Dissipation 25 Energy Generation 10 Energy Capacity 250 Matter Stores 203 Matter Capacity 300 Sight Range 16 Terrain Scan Density 10 Evasion (%) 50 Recoil Reduction 2 Item Schematics ----------------- None Robot Schematics ------------------ None Fabricated ------------ Nothing Alien Tech Used ----------------- None Achievements -------------- None Challenges ------------ None Game ------ Seed SniperWarpBeamcaster Manual? 0 Play Time 00:10:38 Cumulative 160.7 hours Start 2019.10.24 @ 03:42:33 End 2019.10.24 @ 03:48:15 Sessions 1 Manual Loads 0 Difficulty Rogue Special Mode Halloween2019/Abominations Game No. 176 Rogue 176 Adventurer 0 Explorer 0 Win Type - Total 3 Types 3/0/0/0/0/0/0 Lore% 49 Gallery% 67 Achievement% 42 Wizard Run 0 Options --------- ASCII 0 Keyboard 1 Movement Numpad Keybinds 0 Fullscreen 1 Font 18/SmallcapsGlow Map View 76x50 Tactical HUD 1 Map Filters NONE Filters NONE Steam 1 RUN: fed49692-3569-4c1b-80b6-2b6ca6ae8482